[Event "*** Titled Tuesday Blitz"]
[Site "Chess.com"]
[Date "2020.12.01"]
[Round "1"]
[White "Swarnapuri"]
[Black "BJthechessgod"]
[Result "0-1"]
[WhiteElo "2560"]
[BlackElo "2285"]
[TimeControl "180+1"]
[EndTime "10:08:31 PST"]
[Termination "BJthechessgod won by resignation"]

1. d4 {[%clk 0:02:57.7]} 1... Nf6 {[%clk 0:02:59.1]} 2. Bf4 {[%clk 0:02:57.8]}
2... e6 {[%clk 0:02:57.4]} 3. e3 {[%clk 0:02:57.8]} 3... b6 {[%clk 0:02:57.9]}
4. Nf3 {[%clk 0:02:57.9]} 4... Bb7 {[%clk 0:02:58.2]} 5. Bd3 {[%clk 0:02:58.5]}
5... Be7 {[%clk 0:02:58.8]} 6. h3 {[%clk 0:02:58.1]} 6... O-O {[%clk 0:02:59.2]}
7. O-O {[%clk 0:02:58.6]} 7... c5 {[%clk 0:02:59.3]} 8. c3 {[%clk 0:02:57.1]}
8... d5 {[%clk 0:02:59.8]} 9. Nbd2 {[%clk 0:02:55.7]} 9... Nbd7 {[%clk
0:03:00.3]} 10. Qe2 {[%clk 0:02:54.1]} 10... cxd4 {[%clk 0:02:57.7]} 11. exd4
{[%clk 0:02:54]} 11... Re8 {[%clk 0:02:54]} 12. Rae1 {[%clk 0:02:52.6]} 12...
Nf8 {[%clk 0:02:54.2]} 13. Ne5 {[%clk 0:02:52.2]} 13... Bd6 {[%clk 0:02:53.2]}
14. Bh2 {[%clk 0:02:52.1]} 14... Bxe5 {[%clk 0:02:47.3]} 15. Bxe5 {[%clk
0:02:46.9]} 15... N6d7 {[%clk 0:02:47.7]} 16. Bg3 {[%clk 0:02:40.1]} 16... a5
{[%clk 0:02:46.7]} 17. f4 {[%clk 0:02:34.4]} 17... Qc8 {[%clk 0:02:45.8]} 18. f5
{[%clk 0:02:18.5]} 18... exf5 {[%clk 0:02:43.7]} 19. Qxe8 {[%clk 0:02:09.6]}
19... Qxe8 {[%clk 0:02:42.6]} 20. Rxe8 {[%clk 0:02:10.5]} 20... Rxe8 {[%clk
0:02:43.1]} 21. Bxf5 {[%clk 0:02:11.4]} 21... Ba6 {[%clk 0:02:34]} 22. Rf2
{[%clk 0:02:06.3]} 22... g6 {[%clk 0:02:29.1]} 23. Bc2 {[%clk 0:01:58.2]} 23...
f5 {[%clk 0:02:21.5]} 24. Nf3 {[%clk 0:01:56.6]} 24... Kf7 {[%clk 0:02:13.7]}
25. Ba4 {[%clk 0:01:50.9]} 25... b5 {[%clk 0:01:42.6]} 26. Bb3 {[%clk
0:01:50.5]} 26... Nb6 {[%clk 0:01:43]} 27. Bc7 {[%clk 0:01:43.7]} 27... Nc4
{[%clk 0:01:41.6]} 28. Bxc4 {[%clk 0:01:43.7]} 28... bxc4 {[%clk 0:01:41.6]} 29.
Ne5+ {[%clk 0:01:41.8]} 29... Kg7 {[%clk 0:01:40.5]} 30. Bxa5 {[%clk 0:01:36.7]}
30... Bb5 {[%clk 0:01:38.6]} 31. Bb4 {[%clk 0:01:32.2]} 31... Nd7 {[%clk
0:01:38.5]} 32. Nf3 {[%clk 0:01:27.8]} 32... Kf6 {[%clk 0:01:36.7]} 33. Bd6
{[%clk 0:01:27.1]} 33... Ba4 {[%clk 0:01:31.6]} 34. Be5+ {[%clk 0:01:26.9]}
34... Kf7 {[%clk 0:01:29.4]} 35. g4 {[%clk 0:01:25]} 35... fxg4 {[%clk
0:01:20.1]} 36. hxg4 {[%clk 0:01:25.1]} 36... Bd1 {[%clk 0:01:18.9]} 37. Ng5+
{[%clk 0:01:02.2]} 37... Kg8 {[%clk 0:01:18.6]} 38. Nf7 {[%clk 0:01:02.5]} 38...
Nxe5 {[%clk 0:01:13.5]} 39. Nxe5 {[%clk 0:01:03.4]} 39... Ra8 {[%clk 0:01:08.4]}
40. a3 {[%clk 0:01:01.6]} 40... Re8 {[%clk 0:01:07]} 41. Kg2 {[%clk 0:01:00.8]}
41... Kg7 {[%clk 0:01:02]} 42. Kg3 {[%clk 0:01:00.7]} 42... Kh6 {[%clk
0:01:01.4]} 43. Kh4 {[%clk 0:00:52.4]} 43... Kg7 {[%clk 0:00:57.8]} 44. Rf7+
{[%clk 0:00:48.3]} 44... Kg8 {[%clk 0:00:56.8]} 45. Rd7 {[%clk 0:00:46.2]} 45...
Rf8 {[%clk 0:00:53.9]} 46. Kg5 {[%clk 0:00:42]} 46... Rf2 {[%clk 0:00:48.8]} 47.
Rd8+ {[%clk 0:00:41.9]} 47... Kg7 {[%clk 0:00:48.6]} 48. Rd7+ {[%clk 0:00:41.3]}
48... Kg8 {[%clk 0:00:48.5]} 49. Rxd5 {[%clk 0:00:37.4]} 49... Rxb2 {[%clk
0:00:48.3]} 50. Rd8+ {[%clk 0:00:34.6]} 50... Kg7 {[%clk 0:00:48.3]} 51. Rd7+
{[%clk 0:00:34.5]} 51... Kg8 {[%clk 0:00:48.9]} 52. Nxc4 {[%clk 0:00:34.4]}
52... Rb3 {[%clk 0:00:46.9]} 53. Ne3 {[%clk 0:00:30.9]} 53... Bf3 {[%clk
0:00:41.1]} 54. Kf4 {[%clk 0:00:27]} 54... Be2 {[%clk 0:00:32.5]} 55. Nd5 {[%clk
0:00:24.3]} 55... Rxa3 {[%clk 0:00:29.1]} 56. Nf6+ {[%clk 0:00:24]} 56... Kf8
{[%clk 0:00:28.5]} 57. Nxh7+ {[%clk 0:00:24.3]} 57... Ke8 {[%clk 0:00:29.1]} 58.
Nf6+ {[%clk 0:00:24]} 58... Kf8 {[%clk 0:00:29.7]} 59. Kg5 {[%clk 0:00:24]}
59... Rxc3 {[%clk 0:00:27.5]} 60. Kxg6 {[%clk 0:00:24.5]} 60... Bd3+ {[%clk
0:00:27.6]} 61. Kg5 {[%clk 0:00:24.5]} 61... Rc4 {[%clk 0:00:17.9]} 62. Kh5
{[%clk 0:00:24.4]} 62... Be2 {[%clk 0:00:14.9]} 63. Kh6 {[%clk 0:00:22.9]} 63...
Rc3 {[%clk 0:00:11]} 64. g5 {[%clk 0:00:20.6]} 64... Rh3+ {[%clk 0:00:11.3]} 65.
Nh5 {[%clk 0:00:17.4]} 65... Bxh5 {[%clk 0:00:10.1]} 66. g6 {[%clk 0:00:17.4]}
66... Bg4+ {[%clk 0:00:10.4]} 67. Kg5 {[%clk 0:00:18.1]} 67... Bxd7 {[%clk
0:00:11.3]} 0-1

[Event "*** Titled Tuesday Blitz"]
[Site "Chess.com"]
[Date "2020.12.01"]
[Round "1"]
[White "Nikolaj_6"]
[Black "garicradomir"]
[Result "1-0"]
[WhiteElo "2624"]
[BlackElo "2301"]
[TimeControl "180+1"]
[EndTime "10:08:42 PST"]
[Termination "Nikolaj_6 won by resignation"]

1. e4 {[%clk 0:03:00.9]} 1... Nc6 {[%clk 0:02:57.8]} 2. Nf3 {[%clk 0:03:00.5]}
2... d6 {[%clk 0:02:57.5]} 3. d4 {[%clk 0:03:00.1]} 3... Nf6 {[%clk 0:02:57.8]}
4. d5 {[%clk 0:03:00.1]} 4... Nb8 {[%clk 0:02:57.3]} 5. Bd3 {[%clk 0:02:59.2]}
5... g6 {[%clk 0:02:56.8]} 6. c4 {[%clk 0:02:59.1]} 6... Bg7 {[%clk 0:02:56.4]}
7. h3 {[%clk 0:02:59.1]} 7... O-O {[%clk 0:02:49.3]} 8. O-O {[%clk 0:02:58.5]}
8... c5 {[%clk 0:02:34]} 9. Nc3 {[%clk 0:02:56.5]} 9... e5 {[%clk 0:02:33.6]}
10. dxe6 {[%clk 0:02:56]} 10... Bxe6 {[%clk 0:02:31.8]} 11. Bg5 {[%clk
0:02:52.9]} 11... Nc6 {[%clk 0:02:28]} 12. Qd2 {[%clk 0:02:50.6]} 12... Qa5
{[%clk 0:02:09.5]} 13. Rac1 {[%clk 0:02:25]} 13... Rfe8 {[%clk 0:02:07.8]} 14.
Qf4 {[%clk 0:02:24.4]} 14... Nh5 {[%clk 0:01:50.2]} 15. Qxd6 {[%clk 0:02:18]}
15... Rad8 {[%clk 0:01:39.6]} 16. Bxd8 {[%clk 0:02:16.7]} 16... Rxd8 {[%clk
0:01:40.5]} 17. Qh2 {[%clk 0:02:03.1]} 17... Rxd3 {[%clk 0:01:40.3]} 18. Nd5
{[%clk 0:02:02.3]} 18... Rxf3 {[%clk 0:01:17.9]} 19. gxf3 {[%clk 0:02:02.3]}
19... Bxd5 {[%clk 0:01:15.4]} 20. exd5 {[%clk 0:01:53.3]} 20... Nd4 {[%clk
0:01:08.3]} 21. Qb8+ {[%clk 0:01:49.6]} 21... Bf8 {[%clk 0:01:06.4]} 22. Kg2
{[%clk 0:01:33.4]} 22... Ne2 {[%clk 0:00:54.8]} 23. Rce1 {[%clk 0:01:22.4]}
23... Nef4+ {[%clk 0:00:47.2]} 24. Kh2 {[%clk 0:01:16.9]} 24... Kg7 {[%clk
0:00:33.6]} 25. Re8 {[%clk 0:01:13.9]} 25... Qa6 {[%clk 0:00:08.1]} 26. Qe5+
{[%clk 0:00:57.9]} 26... Qf6 {[%clk 0:00:05]} 27. Qxf6+ {[%clk 0:00:55.3]} 27...
Nxf6 {[%clk 0:00:05.5]} 28. Rb8 {[%clk 0:00:54.6]} 28... Bd6 {[%clk 0:00:05.4]}
29. Rxb7 {[%clk 0:00:54.2]} 29... N4xd5+ {[%clk 0:00:04.3]} 30. Kg1 {[%clk
0:00:52.2]} 30... Nf4 {[%clk 0:00:03.9]} 31. Rd1 {[%clk 0:00:50.9]} 31... Be5
{[%clk 0:00:03.8]} 32. b3 {[%clk 0:00:48.1]} 32... Bd4 {[%clk 0:00:03.6]} 33.
Kf1 {[%clk 0:00:45]} 33... Nxh3 {[%clk 0:00:03.4]} 34. Rxa7 {[%clk 0:00:41.4]}
34... Nf4 {[%clk 0:00:03.4]} 35. b4 {[%clk 0:00:39.8]} 35... h5 {[%clk
0:00:03.9]} 36. b5 {[%clk 0:00:37.6]} 36... h4 {[%clk 0:00:03.8]} 37. b6 {[%clk
0:00:35.8]} 37... h3 {[%clk 0:00:04.1]} 38. Kg1 {[%clk 0:00:26.3]} 38... Ne2+
{[%clk 0:00:04.3]} 39. Kh1 {[%clk 0:00:25.4]} 39... Bxf2 {[%clk 0:00:04]} 40. b7
{[%clk 0:00:20.1]} 40... Bg3 {[%clk 0:00:04]} 41. Ra8 {[%clk 0:00:18.3]} 41...
Nh5 {[%clk 0:00:04.2]} 42. b8=Q {[%clk 0:00:18]} 42... Bxb8 {[%clk 0:00:04.6]}
43. Rxb8 {[%clk 0:00:18.9]} 43... Nhg3+ {[%clk 0:00:04.9]} 44. Kh2 {[%clk
0:00:19.2]} 44... Nf5 {[%clk 0:00:04.7]} 45. Kxh3 {[%clk 0:00:18.9]} 45... Nf4+
{[%clk 0:00:05.5]} 46. Kg4 {[%clk 0:00:18.5]} 46... Ne6 {[%clk 0:00:05]} 47.
Rdd8 {[%clk 0:00:17.9]} 47... Nfd4 {[%clk 0:00:05.9]} 48. Rg8+ {[%clk
0:00:17.1]} 48... Kf6 {[%clk 0:00:06.2]} 49. a4 {[%clk 0:00:17.9]} 49... Ke7
{[%clk 0:00:04.2]} 50. a5 {[%clk 0:00:17.4]} 50... f5+ {[%clk 0:00:04]} 51. Kh3
{[%clk 0:00:17.1]} 51... g5 {[%clk 0:00:04.4]} 52. a6 {[%clk 0:00:16]} 52... Nc6
{[%clk 0:00:04.6]} 53. a7 {[%clk 0:00:14.6]} 53... g4+ {[%clk 0:00:05.5]} 54.
fxg4 {[%clk 0:00:14.1]} 54... fxg4+ {[%clk 0:00:06]} 55. Kxg4 {[%clk 0:00:14.4]}
55... Ne5+ {[%clk 0:00:06.4]} 56. Kf5 {[%clk 0:00:13.7]} 56... Nxc4 {[%clk
0:00:07.2]} 57. Rb7+ {[%clk 0:00:11.8]} 57... Kd6 {[%clk 0:00:07]} 58. a8=Q
{[%clk 0:00:10.1]} 58... Nd4+ {[%clk 0:00:07.9]} 59. Kg4 {[%clk 0:00:09.9]}
59... Ne5+ {[%clk 0:00:07.9]} 60. Kg3 {[%clk 0:00:09.1]} 60... Nec6 {[%clk
0:00:08.8]} 61. Rg6+ {[%clk 0:00:07.7]} 61... Ke5 {[%clk 0:00:08.5]} 62. Rb6
{[%clk 0:00:06.7]} 62... Nb4 {[%clk 0:00:08]} 63. Qe8+ {[%clk 0:00:05.9]} 63...
Kd5 {[%clk 0:00:07.9]} 64. Qf7+ {[%clk 0:00:06.3]} 64... Ke4 {[%clk 0:00:07.6]}
65. Rge6+ {[%clk 0:00:06.6]} 65... Kd3 {[%clk 0:00:07.8]} 66. Rxb4 {[%clk
0:00:07.1]} 66... cxb4 {[%clk 0:00:07.7]} 67. Rd6 {[%clk 0:00:07.2]} 67... Kc3
{[%clk 0:00:06.8]} 68. Rxd4 {[%clk 0:00:07.7]} 68... Kxd4 {[%clk 0:00:06.7]} 69.
Qb3 {[%clk 0:00:08.3]} 1-0

[Event "*** Titled Tuesday Blitz"]
[Site "Chess.com"]
[Date "2020.12.01"]
[Round "1"]
[White "kinga2008"]
[Black "DouglasTrawz"]
[Result "1/2-1/2"]
[WhiteElo "2184"]
[BlackElo "2514"]
[TimeControl "180+1"]
[EndTime "10:08:44 PST"]
[Termination "Game drawn by agreement"]

1. e4 {[%clk 0:03:00.3]} 1... e6 {[%clk 0:03:00.2]} 2. d4 {[%clk 0:02:58.1]}
2... d5 {[%clk 0:03:00.3]} 3. Nc3 {[%clk 0:02:55.4]} 3... Bb4 {[%clk 0:02:59.8]}
4. e5 {[%clk 0:02:55.6]} 4... c5 {[%clk 0:02:59.6]} 5. a3 {[%clk 0:02:53.4]}
5... Bxc3+ {[%clk 0:02:59.3]} 6. bxc3 {[%clk 0:02:54.3]} 6... Ne7 {[%clk
0:02:59.7]} 7. Qg4 {[%clk 0:02:50.7]} 7... Qc7 {[%clk 0:02:59.4]} 8. Qxg7 {[%clk
0:02:43.4]} 8... Rg8 {[%clk 0:02:59]} 9. Qxh7 {[%clk 0:02:42.3]} 9... cxd4
{[%clk 0:02:59.5]} 10. Ne2 {[%clk 0:02:41]} 10... dxc3 {[%clk 0:02:57.7]} 11.
Qd3 {[%clk 0:02:39]} 11... Qxe5 {[%clk 0:02:56.4]} 12. Qxc3 {[%clk 0:02:33.7]}
12... Qxc3+ {[%clk 0:02:54.8]} 13. Nxc3 {[%clk 0:02:34.6]} 13... Nbc6 {[%clk
0:02:52.3]} 14. Nb5 {[%clk 0:02:30.3]} 14... f6 {[%clk 0:02:38.2]} 15. Nc7+
{[%clk 0:02:25.9]} 15... Kd7 {[%clk 0:02:37.3]} 16. Nxa8 {[%clk 0:02:25.8]}
16... b6 {[%clk 0:02:37.5]} 17. Be3 {[%clk 0:02:18]} 17... Bb7 {[%clk
0:02:36.8]} 18. Nxb6+ {[%clk 0:02:13.6]} 18... axb6 {[%clk 0:02:37.7]} 19. Bxb6
{[%clk 0:02:13.7]} 19... Nf5 {[%clk 0:02:31.3]} 20. Bb5 {[%clk 0:02:09.2]} 20...
Rxg2 {[%clk 0:02:27]} 21. c4 {[%clk 0:02:06.4]} 21... Nd6 {[%clk 0:02:16]} 22.
cxd5 {[%clk 0:01:59]} 22... Nxb5 {[%clk 0:02:14]} 23. dxc6+ {[%clk 0:01:57.2]}
23... Bxc6 {[%clk 0:02:14.9]} 24. O-O-O+ {[%clk 0:01:53.9]} 24... Kc8 {[%clk
0:02:09.9]} 25. a4 {[%clk 0:01:43]} 25... Nc3 {[%clk 0:01:59]} 26. a5 {[%clk
0:01:34.4]} 26... Nxd1 {[%clk 0:01:52.5]} 27. Rxd1 {[%clk 0:01:32.3]} 27... Rxh2
{[%clk 0:01:51.1]} 28. a6 {[%clk 0:01:26.8]} 28... Bd5 {[%clk 0:01:46.1]} 29.
Rd2 {[%clk 0:01:18.7]} 29... Rh1+ {[%clk 0:01:37.8]} 30. Kb2 {[%clk 0:01:17.8]}
30... Rh4 {[%clk 0:01:24.8]} 31. Ka3 {[%clk 0:01:04.9]} 31... Rh3+ {[%clk
0:01:22.4]} 32. Ka4 {[%clk 0:00:57.6]} 32... Kb8 {[%clk 0:01:07.7]} 33. Rb2
{[%clk 0:00:50.2]} 33... Bc6+ {[%clk 0:00:56.9]} 34. Kb4 {[%clk 0:00:36.9]}
34... Rh4+ {[%clk 0:00:41.6]} 35. Kc5 {[%clk 0:00:33.3]} 35... Bd5 {[%clk
0:00:35.6]} 36. Kd6 {[%clk 0:00:10.3]} 36... Ra4 {[%clk 0:00:29.4]} 37. a7+
{[%clk 0:00:05.7]} 37... Ka8 {[%clk 0:00:21.1]} 38. Ke7 {[%clk 0:00:05.3]} 38...
f5 {[%clk 0:00:20.4]} 39. Kf6 {[%clk 0:00:05.3]} 39... Ra6 {[%clk 0:00:19.9]}
40. Be3 {[%clk 0:00:04.3]} 40... Bb7 {[%clk 0:00:19.9]} 41. Rd2 {[%clk
0:00:04.4]} 41... Bd5 {[%clk 0:00:19.4]} 42. Rc2 {[%clk 0:00:03.8]} 42... Kb7
{[%clk 0:00:12.2]} 43. Rb2+ {[%clk 0:00:02.3]} 43... Kc7 {[%clk 0:00:11.5]} 44.
Rc2+ {[%clk 0:00:02.9]} 44... Kd7 {[%clk 0:00:10.9]} 45. Rb2 {[%clk 0:00:03]}
45... Ra4 {[%clk 0:00:08.1]} 46. Rb8 {[%clk 0:00:02.7]} 46... f4 {[%clk
0:00:07.9]} 47. Bc5 {[%clk 0:00:02.5]} 47... f3 {[%clk 0:00:07.2]} 48. Bb6
{[%clk 0:00:02.5]} 48... Rf4+ {[%clk 0:00:05.2]} 49. Ke5 {[%clk 0:00:02.2]}
49... Ra4 {[%clk 0:00:06.1]} 50. Kf6 {[%clk 0:00:02.2]} 50... Rf4+ {[%clk
0:00:05.8]} 51. Kg7 {[%clk 0:00:02.3]} 51... Re4 {[%clk 0:00:06.7]} 52. Bc5
{[%clk 0:00:02.4]} 52... Ra4 {[%clk 0:00:06.6]} 53. Rb6 {[%clk 0:00:02.8]} 53...
Ra2 {[%clk 0:00:03.9]} 54. Rd6+ {[%clk 0:00:03.2]} 54... Kc7 {[%clk 0:00:04.3]}
55. Rb6 {[%clk 0:00:02.3]} 55... Ra5 {[%clk 0:00:03.1]} 56. Bd4 {[%clk
0:00:01.7]} 56... Rxa7 {[%clk 0:00:03.4]} 57. Rb4 {[%clk 0:00:02.3]} 57... Rb7
{[%clk 0:00:03.3]} 58. Be5+ {[%clk 0:00:03.2]} 58... Kc6+ {[%clk 0:00:03.6]} 59.
Rxb7 {[%clk 0:00:03.7]} 59... Kxb7 {[%clk 0:00:04.5]} 60. Kf6 {[%clk 0:00:04.4]}
60... Kc6 {[%clk 0:00:05.4]} 61. Kg5 {[%clk 0:00:05]} 61... Kb5 {[%clk
0:00:06.3]} 62. Kf4 {[%clk 0:00:05.6]} 62... Kc4 {[%clk 0:00:07.2]} 63. Bd6
{[%clk 0:00:06.2]} 63... Kd3 {[%clk 0:00:07.6]} 64. Bb8 {[%clk 0:00:06.4]} 64...
Ke2 {[%clk 0:00:07.9]} 65. Ba7 {[%clk 0:00:06.7]} 65... Kd3 {[%clk 0:00:06.2]}
66. Be3 {[%clk 0:00:07.1]} 66... Ke2 {[%clk 0:00:07.1]} 67. Ke5 {[%clk
0:00:07.3]} 67... Bb3 {[%clk 0:00:05.5]} 68. Kf4 {[%clk 0:00:07.8]} 68... Ba2
{[%clk 0:00:05.4]} 69. Ke5 {[%clk 0:00:07.2]} 69... Bb3 {[%clk 0:00:04.1]}
1/2-1/2

[Event "*** Titled Tuesday Blitz"]
[Site "Chess.com"]
[Date "2020.12.01"]
[Round "1"]
[White "GMSrinath"]
[Black "JustWatch000"]
[Result "1-0"]
[WhiteElo "2831"]
[BlackElo "2405"]
[TimeControl "180+1"]
[EndTime "10:08:51 PST"]
[Termination "GMSrinath won by resignation"]

1. Nf3 {[%clk 0:02:58.5]} 1... Nf6 {[%clk 0:02:59.5]} 2. c4 {[%clk 0:02:58.1]}
2... g6 {[%clk 0:02:59.6]} 3. b3 {[%clk 0:02:56.9]} 3... Bg7 {[%clk 0:02:59.7]}
4. Bb2 {[%clk 0:02:57.4]} 4... O-O {[%clk 0:03:00.2]} 5. g3 {[%clk 0:02:57.7]}
5... d6 {[%clk 0:03:00.1]} 6. Bg2 {[%clk 0:02:57.2]} 6... e5 {[%clk 0:03:00.5]}
7. O-O {[%clk 0:02:55.9]} 7... Nbd7 {[%clk 0:02:58.7]} 8. Nc3 {[%clk 0:02:56]}
8... c6 {[%clk 0:02:48.6]} 9. d3 {[%clk 0:02:53.6]} 9... Re8 {[%clk 0:02:48.2]}
10. Nd2 {[%clk 0:02:45]} 10... a5 {[%clk 0:02:47.1]} 11. Nde4 {[%clk 0:02:40.2]}
11... Qc7 {[%clk 0:02:45.6]} 12. Rc1 {[%clk 0:02:39]} 12... h6 {[%clk
0:02:43.1]} 13. a3 {[%clk 0:02:36.4]} 13... Kh7 {[%clk 0:02:42.3]} 14. b4 {[%clk
0:02:36.2]} 14... axb4 {[%clk 0:02:42]} 15. axb4 {[%clk 0:02:37.1]} 15... Nxe4
{[%clk 0:02:42.3]} 16. Nxe4 {[%clk 0:02:37.1]} 16... f5 {[%clk 0:02:41.2]} 17.
Nc3 {[%clk 0:02:37.2]} 17... Nf6 {[%clk 0:02:40.3]} 18. b5 {[%clk 0:02:35.9]}
18... Be6 {[%clk 0:02:35.4]} 19. e3 {[%clk 0:02:35.6]} 19... Qb6 {[%clk
0:02:20]} 20. Re1 {[%clk 0:02:30.7]} 20... d5 {[%clk 0:02:13.7]} 21. Na4 {[%clk
0:02:24]} 21... Qa7 {[%clk 0:02:11.1]} 22. Ra1 {[%clk 0:02:17.5]} 22... dxc4
{[%clk 0:01:50]} 23. bxc6 {[%clk 0:02:08.1]} 23... e4 {[%clk 0:01:47.1]} 24.
dxe4 {[%clk 0:01:55]} 24... fxe4 {[%clk 0:01:41.1]} 25. Bd4 {[%clk 0:01:44]}
25... Qb8 {[%clk 0:01:28.1]} 26. cxb7 {[%clk 0:01:44.1]} 26... Qxb7 {[%clk
0:01:26.7]} 27. Nc5 {[%clk 0:01:44.5]} 27... Qc6 {[%clk 0:01:22.2]} 28. Rxa8
{[%clk 0:01:22.9]} 28... Rxa8 {[%clk 0:01:23.1]} 29. Qc2 {[%clk 0:01:09.2]}
29... Bd5 {[%clk 0:01:15.5]} 30. Bxf6 {[%clk 0:00:59.3]} 30... Bxf6 {[%clk
0:01:08.6]} 31. Nxe4 {[%clk 0:00:59.1]} 31... Bg7 {[%clk 0:01:05.6]} 32. Rd1
{[%clk 0:00:59.1]} 32... Rd8 {[%clk 0:00:57]} 33. f4 {[%clk 0:00:38.1]} 33...
Bxe4 {[%clk 0:00:53.9]} 34. Rxd8 {[%clk 0:00:37.9]} 34... Bxg2 {[%clk
0:00:40.4]} 35. Qxg2 {[%clk 0:00:38.8]} 35... Qb6 {[%clk 0:00:40.4]} 36. Rd1
{[%clk 0:00:26.2]} 36... Qxe3+ {[%clk 0:00:38.7]} 37. Qf2 {[%clk 0:00:26.9]}
37... Qe4 {[%clk 0:00:36.5]} 38. Re1 {[%clk 0:00:26]} 38... Qd3 {[%clk
0:00:27.7]} 39. Re7 {[%clk 0:00:18.9]} 39... Kg8 {[%clk 0:00:13]} 40. Re8+
{[%clk 0:00:16]} 40... Kf7 {[%clk 0:00:11.5]} 41. Re3 {[%clk 0:00:15.2]} 41...
Qd1+ {[%clk 0:00:10.6]} 42. Re1 {[%clk 0:00:15.1]} 42... Qd3 {[%clk 0:00:10.1]}
43. Qa7+ {[%clk 0:00:13.9]} 43... Kg8 {[%clk 0:00:09.7]} 44. Re8+ {[%clk
0:00:14]} 44... Kh7 {[%clk 0:00:09.8]} 45. Re7 {[%clk 0:00:14.9]} 45... Qd1+
{[%clk 0:00:09.7]} 46. Kg2 {[%clk 0:00:15.4]} 46... Qc2+ {[%clk 0:00:09.7]} 47.
Qf2 {[%clk 0:00:14.1]} 47... Qd3 {[%clk 0:00:09.2]} 48. Qe2 {[%clk 0:00:09.7]}
48... Qd5+ {[%clk 0:00:08.4]} 49. Qe4 {[%clk 0:00:10.3]} 49... Qd2+ {[%clk
0:00:07.3]} 50. Kh3 {[%clk 0:00:10.8]} 50... Qd1 {[%clk 0:00:05.9]} 51. Qxc4
{[%clk 0:00:08.7]} 51... Qd8 {[%clk 0:00:02.5]} 52. Qc7 {[%clk 0:00:06.5]} 52...
Qf8 {[%clk 0:00:02]} 53. Rxg7+ {[%clk 0:00:05.9]} 53... Qxg7 {[%clk 0:00:02.9]}
54. Qxg7+ {[%clk 0:00:06.8]} 54... Kxg7 {[%clk 0:00:03.7]} 55. Kg4 {[%clk
0:00:07.7]} 55... Kf6 {[%clk 0:00:04.6]} 56. Kf3 {[%clk 0:00:08.4]} 56... Kf5
{[%clk 0:00:05.3]} 57. g4+ {[%clk 0:00:08.6]} 57... Ke6 {[%clk 0:00:05.9]} 58.
Ke4 {[%clk 0:00:09]} 58... Kf6 {[%clk 0:00:05.3]} 59. h4 {[%clk 0:00:07.3]}
59... h5 {[%clk 0:00:05.7]} 60. gxh5 {[%clk 0:00:03.6]} 60... gxh5 {[%clk
0:00:06.6]} 61. f5 {[%clk 0:00:04]} 61... Kf7 {[%clk 0:00:07.5]} 62. Ke5 {[%clk
0:00:04.1]} 62... Ke7 {[%clk 0:00:07.8]} 63. f6+ {[%clk 0:00:04.8]} 63... Kf7
{[%clk 0:00:08.7]} 64. Kf5 {[%clk 0:00:05.4]} 64... Kf8 {[%clk 0:00:09.6]} 65.
Kg6 {[%clk 0:00:06]} 65... Kg8 {[%clk 0:00:09.9]} 66. Kxh5 {[%clk 0:00:06.6]}
66... Kf7 {[%clk 0:00:10.8]} 67. Kg5 {[%clk 0:00:07.5]} 67... Kg8 {[%clk
0:00:11.3]} 68. Kg6 {[%clk 0:00:07.7]} 68... Kh8 {[%clk 0:00:11.4]} 69. Kf7
{[%clk 0:00:07.9]} 69... Kh7 {[%clk 0:00:11.6]} 70. Ke7 {[%clk 0:00:08.8]} 1-0